fUSD/lending_fUSD_20250212
["ID","MTS","AMOUNT","RATE_DAILY","PERIOD"]
[352879495,1739385047397,-1574.67,0.0002058,3]
[352879496,1739385047408,-500.0,0.0002058,3]
[352879497,1739385047418,-150.0,0.00020581,120]
[352879498,1739385047429,-174.30090553,0.00020582,2]
[352879499,1739385047439,-412.0,0.00020582,120]
[352879500,1739385047450,-520321.19434987,0.00020583,4]
[352879501,1739385047557,-151729.98515454,0.00020583,4]
[352879502,1739385047570,-584.12127169,0.00020583,4]
[352879503,1739385047593,-216.80892838,0.00017709,2]
[352879504,1739385047603,-839.6050817,0.00020583,4]
[352879505,1739385047615,-760.4762216,0.00020583,4]
[352879506,1739385047628,-21319.77326298,0.00020583,4]
[352879507,1739385047640,-1938.6818734,0.00020583,4]
[352879508,1739385047715,-500.0,0.00018517,2]
[352879509,1739385047726,-476.98216118,0.00018654,2]
[352879510,1739385047744,-23.01783882,0.00018654,2]
[352879511,1739385047754,-500.0,0.00018791,2]
[352879512,1739385047764,-141.96544943,0.00018799,2]
[352879513,1739385047777,-309.48673915,0.00018799,2]
[352879514,1739385047794,-48.54781142,0.00018799,2]
[352879515,1739385047805,-500.0,0.00018928,2]
[352879516,1739385047814,-500.0,0.00019065,2]
[352879517,1739385047823,-500.0,0.00019202,3]
[352879518,1739385047833,-500.0,0.00019339,3]
[352879519,1739385047842,-500.0,0.00019476,3]
[352879520,1739385047852,-500.0,0.00019613,3]
[352879521,1739385047863,-186.28936265,0.000199,3]
[352879522,1739385047874,-687.0,0.0002,2]
[352879523,1739385047884,-103057.24765466,0.00020583,4]
[352879524,1739385212579,192.848,8.699e-05,2]
[352879526,1739385574783,50494.495,8.836e-05,2]
[352879527,1739385586870,151.99,0.00010137,2]
[352879528,1739385718123,1800.0,0.0002,120]
[352879529,1739386026374,-159.83,0.00013699,2]
[352879535,1739386148069,10000.0,8.836e-05,2]
[352879605,1739386200000,314.21592914,0.00020588,120]
[352879614,1739386232185,-150.0,0.00014232,2]
[352879615,1739386232196,-474.65800251,0.00014269,2]
[352879616,1739386232242,-318.74199749,0.00014269,2]
[352879617,1739386232254,-1000.0,0.0001452,3]
[352879618,1739386232265,-233.59,0.00014794,3]
[352879619,1739386232277,-181.05,0.000148,2]
[352879620,1739386232288,-416.3,0.00015413,2]
[352879621,1739386232300,-1353.59454797,0.00015515,2]
[352879622,1739386232310,-166.65,0.00015515,2]
[352879623,1739386232320,-439.18811564,0.00015547,2]
[352879624,1739386232333,-472.4999982,0.00015547,2]
[352879625,1739386232346,-585.49977958,0.00015547,2]
[352879626,1739386232357,-309.295005,0.00015547,2]
[352879627,1739386232373,-193.51710158,0.00015547,2]
[352879628,1739386232385,-150.0,0.00015781,2]
[352879629,1739386232395,-41.02289842,0.00015805,2]
[352879630,1739386232575,-404.92261432,0.00015805,2]
[352879632,1739386232650,-57.34448726,0.00015805,2]
[352879634,1739386232660,-463.75473179,0.00015805,2]
[352879636,1739386232675,-29.76526821,0.00015805,2]
[352879638,1739386232686,-225.76607067,0.00015805,2]
[352879641,1739386232698,-281.33392933,0.00015805,2]
[352879643,1739386232708,-60.11507085,0.00015805,2]
[352879645,1739386232721,-400.24999975,0.00015805,2]
[352879647,1739386232732,-39.1349294,0.00015805,2]
[352879649,1739386232743,-343.1910707,0.00015805,2]
[352879652,1739386232755,-166.0989293,0.00015805,2]
[352879654,1739386232765,-355.5635747,0.00015805,2]
[352879656,1739386232777,-135.0964253,0.00015805,2]
[352879658,1739386232786,-161.0049827,0.00015805,2]
[352879660,1739386232798,-286.29047868,0.00015805,2]
[352879663,1739386232814,-252.70453862,0.00015805,2]
[352879665,1739386232824,-48.64546138,0.00015814,2]
[352879667,1739386232840,-4050.0,0.00015814,2]
[352879670,1739386232851,-1200.0,0.00015814,2]
[352879672,1739386232863,-384.12105095,0.00015814,2]
[352879674,1739386232876,-690.49970552,0.00015814,2]
[352879677,1739386232889,-542.27378215,0.00015814,2]
[352879679,1739386232900,-300.0,0.00015869,2]
[352879681,1739386232910,-3289.10621785,0.0001587,3]
[352879683,1739386232923,-4567.5776061,0.0001587,3]
[352879732,1739386233433,-770.32955989,0.0001587,3]
[352880172,1739386238080,-1902.51385297,0.0001587,3]
[352880179,1739386238135,-5015.21606816,0.0001587,3]
[352880665,1739386243041,-505.89,0.0001587,2]
[352880668,1739386243052,-462.72,0.0001587,3]
[352880677,1739386243096,-134299.45803805,0.0001587,3]
[352880680,1739386243107,-1448.37,0.0001587,2]
[352880683,1739386243117,-6053.93,0.0001587,2]
[352880686,1739386243127,-293.04,0.0001587,2]
[352880689,1739386243138,-180.18736612,0.00016338,2]
[352880692,1739386243147,-180.1873661,0.00016378,2]
[352880695,1739386243158,-180.1873661,0.00016417,2]
[352880697,1739386243168,-170.248925,0.00016438,2]
[352880699,1739386243177,-181.556827,0.00016438,2]
[352880702,1739386243189,-19759.47,0.00016438,2]
[352880704,1739386243199,-999.99,0.00016438,2]
[352880706,1739386243209,-150.99,0.00016438,2]
[352880708,1739386243218,-547.79,0.00016438,2]
[352880709,1739386243227,-468.6,0.00016438,2]
[352880711,1739386243237,-150.99,0.00016438,2]
[352880713,1739386243246,-1115.45,0.00016438,2]
[352880715,1739386243256,-180.1873661,0.00016457,2]
[352880717,1739386243266,-31688.02815001,0.00016457,2]
[352880719,1739386243276,-493.55019469,0.00016457,2]
[352880722,1739386243287,-785.26584588,0.00016457,2]
[352880724,1739386243298,-682.09696694,0.00016457,2]
[352880726,1739386243308,-178.77061327,0.00016457,2]
[352880727,1739386243318,-493.8,0.00016479,2]
[352880728,1739386243328,-502.2,0.00016508,2]
[352880729,1739386243338,-793.4,0.00016533,2]
[352880730,1739386243348,-500.0,0.00016555,2]
[352880731,1739386243359,-500.0,0.00016555,2]
[352880732,1739386243369,-500.0,0.00016555,2]
[352880733,1739386243380,-268.7672951,0.00016556,2]
[352880734,1739386243390,-500.0,0.00016556,2]
[352880735,1739386243400,-500.0,0.00016556,2]
[352880737,1739386243411,-500.0,0.00016556,2]
[352880739,1739386243421,-500.0,0.00016556,2]
[352880741,1739386243431,-500.0,0.00016556,2]
[352880743,1739386243441,-500.0,0.00016556,2]
[352880745,1739386243451,-500.0,0.00016556,2]
[352880747,1739386243466,-500.0,0.00016556,2]
[352880749,1739386243475,-500.0,0.00016556,2]
[352880751,1739386243485,-500.0,0.00016556,2]
[352880753,1739386243495,-500.0,0.00016556,2]
[352880755,1739386243505,-500.0,0.00016556,2]
[352880757,1739386243515,-500.0,0.00016556,2]
[352880759,1739386243525,-500.0,0.00016556,2]
[352880761,1739386243537,-500.0,0.00016556,2]
[352880763,1739386243548,-500.0,0.00016556,2]
[352880765,1739386243558,-12876.83971672,0.00016556,2]
[352880767,1739386243568,-403.73586186,0.00016556,2]
[352880769,1739386243577,-500.0,0.00016556,2]
[352880771,1739386243587,-500.0,0.00016556,2]
[352880773,1739386243597,-500.0,0.00016556,2]
[352880775,1739386243608,-500.0,0.00016556,2]
[352880777,1739386243620,-500.0,0.00016556,2]
[352880779,1739386243630,-500.0,0.00016556,2]
[352880781,1739386243640,-500.0,0.00016556,2]
[352880783,1739386243652,-500.0,0.00016556,2]
[352880785,1739386243662,-500.0,0.00016556,2]
[352880787,1739386243671,-500.0,0.00016556,2]
[352880789,1739386243684,-500.0,0.00016556,2]
[352880791,1739386243693,-1128.06,0.00016556,2]
[352880793,1739386243703,-500.0,0.00016556,2]
[352880795,1739386243713,-500.0,0.00016556,2]
[352880797,1739386243723,-500.0,0.00016556,2]
[352880799,1739386243732,-500.0,0.00016556,2]
[352880801,1739386243742,-500.0,0.00016556,2]
[352880802,1739386243751,-500.0,0.00016556,2]
[352880803,1739386243761,-500.0,0.00016556,2]
[352880805,1739386243770,-500.0,0.00016556,2]
[352880806,1739386243780,-500.0,0.00016556,2]
[352880807,1739386243789,-500.0,0.00016556,2]
[352880808,1739386243799,-500.0,0.00016556,2]
[352880809,1739386243809,-500.0,0.00016556,2]
[352880810,1739386243818,-222.35403035,0.00016556,2]
[352880811,1739386243828,-3041.68,0.00016556,2]
[352880812,1739386243837,-500.0,0.00016556,2]
[352880813,1739386243847,-513.91,0.00016556,2]
[352880814,1739386243857,-500.0,0.00016556,2]
[352880815,1739386243867,-500.0,0.00016556,2]
[352880816,1739386243879,-500.0,0.00016556,2]
[352880817,1739386243890,-500.0,0.00016556,2]
[352880818,1739386243901,-500.0,0.00016556,2]
[352880819,1739386243911,-500.0,0.00016556,2]
[352880820,1739386243923,-585.7,0.00016556,2]
[352880821,1739386243934,-500.0,0.00016556,2]
[352880822,1739386243944,-500.0,0.00016556,2]
[352880823,1739386243954,-500.0,0.00016556,2]
[352880824,1739386243965,-500.0,0.00016556,2]
[352880825,1739386243975,-500.0,0.00016556,2]
[352880826,1739386243985,-500.0,0.00016556,2]
[352880827,1739386243995,-500.0,0.00016556,2]
[352880828,1739386244006,-578.99,0.00016556,2]
[352880829,1739386244016,-500.0,0.00016556,2]
[352880830,1739386244027,-637.85,0.00016556,2]
[352880831,1739386244037,-500.0,0.00016556,2]
[352880832,1739386244048,-500.0,0.00016556,2]
[352880833,1739386244058,-1200.0,0.00016556,2]
[352880834,1739386244067,-502.28,0.00016556,2]
[352880835,1739386244077,-500.0,0.00016556,2]
[352880836,1739386244087,-500.0,0.00016556,2]
[352880837,1739386244097,-500.0,0.00016556,2]
[352880838,1739386244107,-500.0,0.00016556,2]
[352880839,1739386244117,-500.0,0.00016556,2]
[352880840,1739386244127,-500.0,0.00016556,2]
[352880841,1739386244137,-500.0,0.00016556,2]
[352880842,1739386244147,-500.0,0.00016556,2]
[352880843,1739386244157,-500.0,0.00016556,2]
[352880844,1739386244169,-500.0,0.00016556,2]
[352880845,1739386244179,-500.0,0.00016556,2]
[352880846,1739386244188,-500.0,0.00016556,2]
[352880847,1739386244199,-500.0,0.00016556,2]
[352880848,1739386244209,-500.0,0.00016556,2]
[352880849,1739386244218,-538.14,0.00016556,2]
[352880850,1739386244228,-500.0,0.00016556,2]
[352880851,1739386244238,-500.0,0.00016556,2]
[352880852,1739386244248,-500.0,0.00016556,2]
[352880853,1739386244258,-500.0,0.00016556,2]
[352880854,1739386244268,-500.0,0.00016556,2]
[352880855,1739386244278,-168.30011951,0.00016557,3]
[352880856,1739386244288,-6369.02148834,0.00016557,2]
[352880857,1739386244298,-497007.35841973,0.00016557,3]
[352880858,1739386244309,-285988.89083798,0.00016557,5]
[352880862,1739386331449,161.49,0.00012679,2]
[352880867,1739386655726,550.0,0.00013,2]
[352880868,1739386683930,38289.347,0.00012572,2]
[352880877,1739386819142,151.81,0.00010137,2]
[352880895,1739387432211,-1000.0,0.00012513,2]
[352880896,1739387432223,-738.28295851,0.00012513,2]
[352880897,1739387432236,-327.4148016,0.00012513,2]
[352880898,1739387432250,-1000.0,0.00012513,2]
[352880899,1739387432262,-1173.18923699,0.00012513,2]
[352880900,1739387432273,-268.59,0.00012513,2]
[352880901,1739387432284,-19852.96081902,0.00012513,2]
[352880902,1739387432296,-4014.45255788,0.00012513,2]
[352880903,1739387432309,-8702.8033604,0.00012513,2]
[352880904,1739387432318,-1771.59518351,0.00012515,2]
[352880905,1739387432334,-1870.07451559,0.00012515,2]
[352880906,1739387432346,-2072.128,0.00012515,2]
[352880907,1739387432359,-318.19700486,0.00012515,2]
[352880908,1739387432369,-143.74498814,0.00012518,2]
[352880909,1739387432398,-3285.66794617,0.00012518,2]
[352880910,1739387432410,-662.33231003,0.00012518,2]
[352880911,1739387432506,-3552.85348114,0.00012518,2]
[352880912,1739387432516,-139413.15093313,0.00012523,2]
[352880913,1739387432527,-6031.99470396,0.00012528,2]
[352880914,1739387432537,-191552.31123456,0.00012529,2]
[352880915,1739387432547,-37077.6937344,0.00012531,2]
[352880916,1739387432557,-461.35380257,0.00012531,2]
[352880917,1739387432567,-7656.07520146,0.00012532,2]
[352880918,1739387432577,-7644.59872548,0.00012533,2]
[352880919,1739387432587,-139413.15093313,0.00012536,2]
[352880920,1739387432598,-191552.31123456,0.00012541,2]
[352880921,1739387432608,-7656.07520146,0.00012544,2]
[352880922,1739387432618,-21942.66621067,0.00012545,2]
[352880923,1739387432628,-21942.66621067,0.00012546,2]
[352880924,1739387432638,-6031.99470396,0.00012549,2]
[352880925,1739387432647,-37077.6937344,0.00012552,2]
[352880926,1739387432658,-183922.47320883,0.00012553,2]
[352880928,1739387432669,-999.992,0.00012553,2]
[352880930,1739387432681,-428.94,0.00012553,2]
[352880932,1739387432694,-265.790003,0.00012553,2]
[352880934,1739387432710,-372.98264545,0.00012553,2]
[352880937,1739387432722,-973.15879423,0.00012553,2]
[352881457,1739387438095,-4588.97458305,0.00012553,2]
[352881459,1739387438105,-20898.27541695,0.00012553,2]
[352881461,1739387438119,-776.3514794,0.00012553,2]
[352881463,1739387438132,-268.03931432,0.00012553,2]
[352881465,1739387438142,-461.35380257,0.00012553,2]
[352881467,1739387438152,-428.25606559,0.00012559,2]
[352881469,1739387438161,-6031.99470396,0.0001256,2]
[352881471,1739387438171,-7656.07520146,0.0001256,2]
[352881473,1739387438181,-139413.15093313,0.00012561,2]
[352881475,1739387438191,-21942.66621067,0.00012565,2]
[352881477,1739387438202,-461.35380257,0.00012566,2]
[352881479,1739387438211,-428.25606559,0.00012571,2]
[352881481,1739387438221,-8583.57306611,0.00012572,2]
[352881484,1739387438233,-1171.38393184,0.00012572,2]
[352881486,1739387438246,-3043.66152464,0.00012572,2]
[352881488,1739387438263,-37122.70821619,0.00012572,2]
[352881490,1739387438275,-17776.968879,0.00012572,2]
[352881493,1739387438287,-1374.5550006,0.00012572,2]
[352881495,1739387438299,-939.84,0.00012572,2]
[352881497,1739387438310,-3000.000001,0.00012572,2]
[352881500,1739387438326,-627.34078749,0.00012572,2]
[352881502,1739387438338,-79622.93282769,0.00012572,2]
[352881504,1739387438348,-7656.07520146,0.00012573,2]
[352881505,1739387438358,-428.25606559,0.00012576,2]
[352881506,1739387438368,-6248.8742881,0.00012578,2]
[352881507,1739387438384,-389.900012,0.00012578,2]
[352881508,1739387438398,-132774.37663303,0.00012578,2]
[352881509,1739387438420,-428.25606559,0.0001258,2]
[352881510,1739387438431,-7644.59872548,0.00012589,2]
[352881511,1739387438442,-37077.6937344,0.0001259,2]
[352881512,1739387438451,-461.35380257,0.00012596,2]
[352881514,1739387438462,-7644.59872548,0.00012599,2]
[352881516,1739387438472,-903.2,0.00013419,2]
[352881518,1739387438481,-2024.0,0.00014232,2]
[352881520,1739387438491,-162.95,0.00015,2]
[352881522,1739387438501,-600.0,0.00015,2]
[352881524,1739387438511,-250.0,0.00015081,2]
[352881526,1739387438522,-32013.44545203,0.00015113,2]
[352881528,1739387438531,-523.13,0.00015114,2]
[352881530,1739387438542,-4000.0,0.00015163,2]
[352881532,1739387438551,-1500.0,0.00015174,2]
[352881534,1739387438561,-340.59,0.00015184,2]
[352881537,1739387438571,-162.56,0.00015297,2]
[352881539,1739387438581,-200.0,0.00015306,2]
[352881541,1739387438590,-2751.0,0.00015365,2]
[352881543,1739387438600,-901.38,0.00015458,2]
[352881545,1739387438610,-23900.0,0.00015508,2]
[352881547,1739387438619,-299.99,0.00015508,2]
[352881549,1739387438629,-150.99,0.00015508,2]
[352881551,1739387438639,-150.0,0.00015571,2]
[352881553,1739387438649,-6469.11,0.00015572,2]
[352881555,1739387438658,-150.99,0.00015572,2]
[352881557,1739387438669,-9007.41,0.00015572,2]
[352881559,1739387438678,-691.08,0.0001565,2]
[352881561,1739387438688,-23985.40717831,0.0001565,2]
[352881563,1739387438701,-26492.77405302,0.0001565,2]
[352881566,1739387438713,-8239.9999986,0.0001565,2]
[352881568,1739387438724,-4953.14877007,0.0001565,2]
[352881570,1739387438734,-469.27,0.00015664,2]
[352881572,1739387438743,-903.2,0.00015683,2]
[352881574,1739387438754,-1447.94109791,0.00015725,2]
[352881576,1739387438766,-126.28890209,0.00015725,2]
[352881578,1739387438775,-494.79,0.0001591,2]
[352881580,1739387438785,-497.29,0.00016208,2]
[352881582,1739387438796,-170.71,0.00016215,2]
[352881584,1739387438805,-181.556827,0.00016438,2]
[352881586,1739387438814,-170.248925,0.00016438,2]
[352881589,1739387438824,-163.03,0.00016453,2]
[352881591,1739387438837,-423.90344245,0.00016457,2]
[352881593,1739387438847,-534.4429308,0.00016457,2]
[352881595,1739387438856,-239.66180548,0.00016457,2]
[352881597,1739387438866,-508.65,0.00016477,2]
[352881599,1739387438880,-1264.735,0.00016487,2]
[352881601,1739387438890,-380.11571904,0.00016487,2]
[352881727,1739387440260,-123.57428096,0.00016487,2]
[352881729,1739387440270,-12588.69791133,0.000165,2]
[352881735,1739387440312,-7692.88547222,0.000165,2]
[352881741,1739387440367,-34838.04545203,0.000165,2]
[352881748,1739387440422,-962.49866846,0.000165,2]
[352881750,1739387440434,-267.27624451,0.000165,2]
[352881753,1739387440447,-2200.29742296,0.000165,2]
[352881755,1739387440456,-494.61,0.00016502,2]
[352881757,1739387440466,-500.93,0.00016524,2]
[352881759,1739387440476,-598.41,0.00016553,2]
[352881761,1739387440486,-481.1,0.00016553,2]
[352881763,1739387440496,-474.68,0.00016553,2]
[352881765,1739387440507,-500.0,0.00016553,2]
[352881767,1739387440517,-500.0,0.00016553,2]
[352881769,1739387440527,-500.0,0.00016553,2]
[352881771,1739387440537,-500.0,0.00016553,2]
[352881773,1739387440547,-500.0,0.00016553,2]
[352881775,1739387440557,-247.44,0.00016553,2]
[352881777,1739387440567,-500.0,0.00016553,2]
[352881779,1739387440577,-500.0,0.00016553,2]
[352881781,1739387440588,-500.0,0.00016553,2]
[352881783,1739387440599,-544.53,0.00016553,2]
[352881785,1739387440608,-606.32,0.00016553,2]
[352881788,1739387440619,-224.95,0.00016553,2]
[352881789,1739387440629,-368.1,0.00016553,2]
[352881791,1739387440639,-500.0,0.00016553,2]
[352881793,1739387440649,-413.39,0.00016553,2]
[352881795,1739387440659,-500.0,0.00016553,2]
[352881797,1739387440669,-500.0,0.00016553,2]
[352881799,1739387440679,-530.93,0.00016553,2]
[352881801,1739387440689,-321.34,0.00016553,2]
[352881804,1739387440699,-500.0,0.00016553,2]
[352881806,1739387440710,-500.0,0.00016553,2]
[352881808,1739387440720,-500.0,0.00016553,2]
[352881810,1739387440730,-509.04,0.00016554,2]
[352881812,1739387440739,-500.0,0.00016554,2]
[352881814,1739387440751,-523.75,0.00016554,2]
[352881816,1739387440762,-500.0,0.00016554,2]
[352881818,1739387440771,-500.0,0.00016554,2]
[352881820,1739387440781,-621.93,0.00016554,2]
[352881822,1739387440790,-500.0,0.00016554,2]
[352881824,1739387440800,-500.0,0.00016554,2]
[352881826,1739387440814,-500.0,0.00016554,2]
[352881828,1739387440825,-599.16,0.00016554,2]
[352881830,1739387440834,-500.0,0.00016554,2]
[352881832,1739387440845,-500.0,0.00016554,2]
[352881834,1739387440855,-500.0,0.00016554,2]
[352881836,1739387440865,-500.0,0.00016554,2]
[352881838,1739387440878,-500.0,0.00016554,2]
[352881840,1739387440887,-500.0,0.00016554,2]
[352881842,1739387440897,-500.0,0.00016554,2]
[352881844,1739387440907,-500.0,0.00016554,2]
[352881846,1739387440918,-517.91,0.00016554,2]
[352881848,1739387440928,-500.0,0.00016554,2]
[352881850,1739387440937,-500.0,0.00016554,2]
[352881852,1739387440948,-553.38,0.00016554,2]
[352881854,1739387440960,-500.0,0.00016554,2]
[352881856,1739387440970,-500.0,0.00016554,2]
[352881858,1739387440981,-500.0,0.00016554,2]
[352881860,1739387440991,-500.0,0.00016554,2]
[352881862,1739387441002,-500.0,0.00016554,2]
[352881864,1739387441013,-500.0,0.00016554,2]
[352881866,1739387441023,-541.24,0.00016554,2]
[352881868,1739387441033,-500.0,0.00016554,2]
[352881870,1739387441043,-138.76257755,0.00016554,2]
[352881873,1739387441056,-288.07999384,0.00016554,2]
[352881875,1739387441074,-500.0,0.00016553,2]
[352881877,1739387441084,-73.15742861,0.00016554,2]
[352881879,1739387441094,-500.0,0.00016554,2]
[352881881,1739387441104,-500.0,0.00016554,2]
[352881884,1739387441115,-500.0,0.00016554,2]
[352881886,1739387441125,-500.0,0.00016554,2]
[352881887,1739387441135,-500.0,0.00016554,2]
[352881890,1739387441146,-500.0,0.00016554,2]
[352881891,1739387441156,-509.74,0.00016554,2]
[352881894,1739387441166,-247.39,0.00016554,2]
[352881896,1739387441176,-500.0,0.00016554,2]
[352881898,1739387441186,-2914.94,0.00016554,2]
[352881900,1739387441196,-500.0,0.00016554,2]
[352881902,1739387441205,-500.0,0.00016554,2]
[352881904,1739387441215,-500.0,0.00016554,2]
[352881906,1739387441226,-500.0,0.00016554,2]
[352881908,1739387441235,-189.34,0.00016554,2]
[352881910,1739387441245,-500.0,0.00016554,2]
[352881912,1739387441255,-571.56,0.00016554,2]
[352881914,1739387441265,-500.0,0.00016554,2]
[352881916,1739387441276,-500.0,0.00016554,2]
[352881918,1739387441285,-500.0,0.00016554,2]
[352881920,1739387441295,-500.0,0.00016554,2]
[352881922,1739387441304,-500.0,0.00016554,2]
[352881924,1739387441314,-500.0,0.00016554,2]
[352881926,1739387441328,-586.12,0.00016554,2]
[352881928,1739387441338,-170.36592971,0.00016554,2]
[352881930,1739387441349,-553.86,0.00016554,2]
[352881932,1739387441358,-500.0,0.00016554,2]
[352881934,1739387441368,-518.77,0.00016554,2]
[352881936,1739387441378,-1200.0,0.00016554,2]
[352881938,1739387441388,-401.24133202,0.00016554,2]
[352881940,1739387441397,-628.74,0.00016554,2]
[352881942,1739387441407,-444.63,0.00016554,2]
[352881944,1739387441416,-500.0,0.00016554,2]
[352881946,1739387441426,-500.0,0.00016554,2]
[352881948,1739387441436,-500.0,0.00016554,2]
[352881950,1739387441445,-500.0,0.00016554,2]
[352881952,1739387441455,-542.54,0.00016554,2]
[352881954,1739387441465,-500.0,0.00016554,2]
[352881956,1739387441476,-500.0,0.00016554,2]
[352881958,1739387441486,-288.60526992,0.00016554,2]
[352881960,1739387441495,-500.0,0.00016554,2]
[352881962,1739387441507,-581.89,0.00016554,2]
[352881964,1739387441516,-500.0,0.00016554,2]
[352881966,1739387441526,-500.0,0.00016554,2]
[352881968,1739387441536,-500.0,0.00016554,2]
[352881970,1739387441545,-500.0,0.00016554,2]
[352881971,1739387441555,-500.0,0.00016554,2]
[352881972,1739387441565,-500.0,0.00016554,2]
[352881973,1739387441575,-473.50871273,0.00016554,2]
[352881974,1739387441585,-622.98,0.00016554,2]
[352881975,1739387441596,-534.02,0.00016554,2]
[352881976,1739387441606,-546.47,0.00016554,2]
[352881977,1739387441616,-500.0,0.00016554,2]
[352881979,1739387441625,-500.0,0.00016554,2]
[352881981,1739387441636,-500.0,0.00016554,2]
[352881983,1739387441646,-305.13,0.00016554,2]
[352881985,1739387441656,-252.82796148,0.00016554,2]
[352881987,1739387441666,-500.0,0.00016554,2]
[352881989,1739387441676,-500.0,0.00016554,2]
[352881991,1739387441686,-500.0,0.00016554,2]
[352881993,1739387441695,-500.0,0.00016554,2]
[352881995,1739387441705,-500.0,0.00016554,2]
[352881997,1739387441715,-500.0,0.00016554,2]
[352881999,1739387441724,-500.0,0.00016554,2]
[352882001,1739387441734,-500.0,0.00016554,2]
[352882003,1739387441744,-623.4,0.00016554,2]
[352882005,1739387441753,-500.0,0.00016554,2]
[352882007,1739387441763,-500.0,0.00016554,2]
[352882009,1739387441774,-500.0,0.00016554,2]
[352882011,1739387441783,-500.0,0.00016554,2]
[352882013,1739387441794,-500.0,0.00016554,2]
[352882015,1739387441804,-546.87,0.00016554,2]
[352882017,1739387441814,-500.0,0.00016554,2]
[352882019,1739387441824,-203.54,0.00016554,2]
[352882022,1739387441843,-500.0,0.00016554,2]
[352882024,1739387441856,-500.0,0.00016554,2]
[352882027,1739387441866,-500.0,0.00016554,2]
[352882029,1739387441880,-500.0,0.00016554,2]
[352882031,1739387441890,-500.0,0.00016554,2]
[352882033,1739387441900,-500.0,0.00016554,2]
[352882035,1739387441911,-500.0,0.00016554,2]
[352882037,1739387441921,-500.0,0.00016554,2]
[352882039,1739387441931,-500.0,0.00016554,2]
[352882041,1739387441942,-500.0,0.00016554,2]
[352882043,1739387441953,-500.0,0.00016554,2]
[352882045,1739387441962,-500.0,0.00016554,2]
[352882047,1739387441972,-606.83,0.00016554,2]
[352882049,1739387441982,-500.0,0.00016554,2]
[352882051,1739387441992,-500.0,0.00016554,2]
[352882053,1739387442002,-500.0,0.00016554,2]
[352882055,1739387442013,-500.0,0.00016554,2]
[352882057,1739387442022,-500.0,0.00016554,2]
[352882059,1739387442033,-516.16,0.00016554,2]
[352882061,1739387442043,-525.15,0.00016554,2]
[352882063,1739387442053,-500.0,0.00016554,2]
[352882065,1739387442063,-500.0,0.00016554,2]
[352882067,1739387442073,-500.0,0.00016554,2]
[352882069,1739387442083,-500.0,0.00016554,2]
[352882072,1739387442093,-500.0,0.00016554,2]
[352882073,1739387442103,-500.0,0.00016554,2]
[352882076,1739387442113,-500.0,0.00016554,2]
[352882078,1739387442123,-500.0,0.00016554,2]
[352882080,1739387442134,-500.0,0.00016554,2]
[352882082,1739387442144,-500.0,0.00016554,2]
[352882084,1739387442154,-500.0,0.00016554,2]
[352882086,1739387442163,-500.0,0.00016554,2]
[352882088,1739387442173,-500.0,0.00016554,2]
[352882090,1739387442185,-500.0,0.00016554,2]
[352882092,1739387442196,-500.0,0.00016554,2]
[352882094,1739387442206,-500.0,0.00016554,2]
[352882096,1739387442216,-500.0,0.00016554,2]
[352882098,1739387442226,-640.52,0.00016554,2]
[352882100,1739387442236,-500.0,0.00016554,2]
[352882102,1739387442246,-434.28,0.00016554,2]
[352882104,1739387442256,-500.0,0.00016554,2]